[Event "Titled Tuesday Blitz October 19 2021"]
[White "Indjic, Aleksandar"]
[Black "Moroni, Luca Jr"]
[WhiteFideId "911925"]
[BlackFideId "865834"]
[WhiteElo "2643"]
[BlackElo "2491"]
[Result "1-0"]
[Round "10"]
[TimeControl "180+1"]
[Date "2021.10.19"]
[WhiteClock "0:00:06"]
[BlackClock "0:00:02"]

1. d4 {[%clk 0:03:00]}  g6 {[%clk 0:03:00]} 2. h4 {[%clk 0:02:58]}  Bg7 {[%clk 0:03:00]} 3. h5 {[%clk 0:02:58]}  gxh5 {[%clk 0:03:01]} 4. e4 {[%clk 0:02:57]}  d5 {[%clk 0:02:53]} 5. e5 {[%clk 0:02:56]}  c5 {[%clk 0:02:52]} 6. Qxh5 {[%clk 0:02:45]}  Nc6 {[%clk 0:02:42]} 7. Nf3 {[%clk 0:02:44]}  cxd4 {[%clk 0:02:33]} 8. Bf4 {[%clk 0:02:16]}  Be6 {[%clk 0:02:16]} 9. Nbd2 {[%clk 0:02:14]}  Qd7 {[%clk 0:02:13]} 10. Bb5 {[%clk 0:02:10]}  a6 {[%clk 0:02:05]} 11. Bd3 {[%clk 0:02:09]}  h6 {[%clk 0:01:42]} 12. a3 {[%clk 0:02:05]}  Bg4 {[%clk 0:01:31]} 13. Qh4 {[%clk 0:02:02]}  O-O-O {[%clk 0:01:31]} 14. b4 {[%clk 0:02:01]}  Bf5 {[%clk 0:01:29]} 15. Qg3 {[%clk 0:01:56]}  Bxd3 {[%clk 0:01:17]} 16. cxd3 {[%clk 0:01:55]}  Bf8 {[%clk 0:01:15]} 17. Rc1 {[%clk 0:01:46]}  e6 {[%clk 0:01:11]} 18. Nxd4 {[%clk 0:01:45]}  Ne7 {[%clk 0:01:09]} 19. b5 {[%clk 0:01:38]}  axb5 {[%clk 0:01:07]} 20. Nxb5 {[%clk 0:01:38]}  Nf5 {[%clk 0:01:07]} 21. Qh3 {[%clk 0:01:30]}  Kb8 {[%clk 0:01:02]} 22. Qxf5 {[%clk 0:01:26]}  exf5 {[%clk 0:00:55]} 23. e6+ {[%clk 0:01:25]}  Bd6 {[%clk 0:00:50]} 24. Bxd6+ {[%clk 0:01:17]}  Qxd6 {[%clk 0:00:51]} 25. Nxd6 {[%clk 0:01:17]}  Rxd6 {[%clk 0:00:52]} 26. exf7 {[%clk 0:01:17]}  Re6+ {[%clk 0:00:50]} 27. Kf1 {[%clk 0:01:13]}  Rf8 {[%clk 0:00:50]} 28. Nb3 {[%clk 0:01:10]}  Rxf7 {[%clk 0:00:39]} 29. Re1 {[%clk 0:01:04]}  Rg6 {[%clk 0:00:34]} 30. Nc5 {[%clk 0:01:01]}  f4 {[%clk 0:00:30]} 31. Re8+ {[%clk 0:00:27]}  Ka7 {[%clk 0:00:30]} 32. Rh8 {[%clk 0:00:26]}  Rfg7 {[%clk 0:00:29]} 33. Rh2 {[%clk 0:00:24]}  f3 {[%clk 0:00:28]} 34. g3 {[%clk 0:00:18]}  Nd4 {[%clk 0:00:27]} 35. Rh4 {[%clk 0:00:14]}  Rc7 {[%clk 0:00:26]} 36. Rxd4 {[%clk 0:00:13]}  Rxc5 {[%clk 0:00:26]} 37. Kg1 {[%clk 0:00:13]}  Re6 {[%clk 0:00:24]} 38. g4 {[%clk 0:00:11]}  Rc2 {[%clk 0:00:10]} 39. Rf8 {[%clk 0:00:09]}  Re1+ {[%clk 0:00:09]} 40. Kh2 {[%clk 0:00:09]}  Rxf2+ {[%clk 0:00:09]} 41. Kg3 {[%clk 0:00:10]}  Rg2+ {[%clk 0:00:04]} 42. Kxf3 {[%clk 0:00:10]}  Ra2 {[%clk 0:00:05]} 43. Ra4+ {[%clk 0:00:05]}  Kb6 {[%clk 0:00:04]} 44. Rb4+ {[%clk 0:00:06]}  Ka7 {[%clk 0:00:03]} 45. Ra4+ {[%clk 0:00:03]}  Kb6 {[%clk 0:00:03]} 46. Rb4+ {[%clk 0:00:04]}  Kc7 {[%clk 0:00:01]} 47. Rf7+ {[%clk 0:00:04]}  Kd6 {[%clk 0:00:02]} 48. Rbxb7 {[%clk 0:00:04]}  Rf1+ {[%clk 0:00:01]} 49. Kg3 {[%clk 0:00:04]}  Rxf7 {[%clk 0:00:02]} 50. Rxf7 {[%clk 0:00:04]}  Rxa3 {[%clk 0:00:02]} 51. Rf3 {[%clk 0:00:05]}  d4 {[%clk 0:00:01]} 52. Kh4 {[%clk 0:00:05]}  Ke5 {[%clk 0:00:01]} 53. Kh5 {[%clk 0:00:05]}  Ra6 {[%clk 0:00:01]} 54. Rf5+ {[%clk 0:00:04]}  Ke6 {[%clk 0:00:02]} 55. Kxh6 {[%clk 0:00:05]}  Ra3 {[%clk 0:00:02]} 56. Rf3 {[%clk 0:00:05]}  Ra1 {[%clk 0:00:02]} 57. g5 {[%clk 0:00:06]}  Rg1 {[%clk 0:00:03]} 58. Kg6 {[%clk 0:00:06]}  Re1 {[%clk 0:00:02]} 59. Rf4 {[%clk 0:00:06]}  Re3 {[%clk 0:00:02]} 60. Rxd4 {[%clk 0:00:06]}  Ke5 {[%clk 0:00:02]} 61. Rd8 {[%clk 0:00:06]}  Kf4 {[%clk 0:00:02]} 62. Kf6 {[%clk 0:00:06]}  Re5 {[%clk 0:00:02]} 63. Rd4+ {[%clk 0:00:06]} 1-0


[Site "https://www.chess.com"]

[Event "Titled Tuesday Blitz October 19 2021"]
[White "Khanin, Semen"]
[Black "Siva Mahadevan"]
[WhiteFideId "4111990"]
[BlackFideId "25043153"]
[WhiteElo "2436"]
[BlackElo "2203"]
[Result "0-1"]
[Round "10"]
[TimeControl "180+1"]
[Date "2021.10.19"]
[WhiteClock "0:00:06"]
[BlackClock "0:01:28"]

1. Nf3 {[%clk 0:03:00]}  Nf6 {[%clk 0:02:59]} 2. g3 {[%clk 0:03:00]}  g6 {[%clk 0:03:00]} 3. b3 {[%clk 0:02:59]}  Bg7 {[%clk 0:03:01]} 4. Bb2 {[%clk 0:03:00]}  O-O {[%clk 0:03:01]} 5. Bg2 {[%clk 0:03:00]}  d6 {[%clk 0:03:02]} 6. d4 {[%clk 0:03:01]}  e5 {[%clk 0:03:03]} 7. dxe5 {[%clk 0:02:59]}  Nfd7 {[%clk 0:03:03]} 8. O-O {[%clk 0:02:59]}  Nc6 {[%clk 0:03:03]} 9. c4 {[%clk 0:02:58]}  dxe5 {[%clk 0:03:03]} 10. Nc3 {[%clk 0:02:57]}  e4 {[%clk 0:03:03]} 11. Nd2 {[%clk 0:02:55]}  f5 {[%clk 0:03:03]} 12. Qc1 {[%clk 0:02:42]}  Nde5 {[%clk 0:02:58]} 13. Nd5 {[%clk 0:02:41]}  Be6 {[%clk 0:02:56]} 14. f3 {[%clk 0:02:25]}  exf3 {[%clk 0:02:49]} 15. Nxf3 {[%clk 0:02:25]}  Bxd5 {[%clk 0:02:39]} 16. cxd5 {[%clk 0:02:21]}  Nxf3+ {[%clk 0:02:39]} 17. Bxf3 {[%clk 0:02:21]}  Ne5 {[%clk 0:02:38]} 18. Bg2 {[%clk 0:02:03]}  Re8 {[%clk 0:02:38]} 19. Qd2 {[%clk 0:01:55]}  Ng4 {[%clk 0:02:33]} 20. Bxg7 {[%clk 0:01:54]}  Kxg7 {[%clk 0:02:34]} 21. e4 {[%clk 0:01:52]}  fxe4 {[%clk 0:02:17]} 22. Rf4 {[%clk 0:01:52]}  e3 {[%clk 0:02:06]} 23. Qd4+ {[%clk 0:01:51]}  Nf6 {[%clk 0:02:06]} 24. Bh3 {[%clk 0:01:37]}  Qe7 {[%clk 0:01:45]} 25. Be6 {[%clk 0:01:35]}  Rad8 {[%clk 0:01:45]} 26. Re1 {[%clk 0:00:56]}  c6 {[%clk 0:01:36]} 27. Rxe3 {[%clk 0:00:52]}  Rxd5 {[%clk 0:01:28]} 28. Bxd5 {[%clk 0:00:11]}  Qxe3+ {[%clk 0:01:28]} 29. Qxe3 {[%clk 0:00:10]}  Rxe3 {[%clk 0:01:28]} 30. Bf3 {[%clk 0:00:08]}  Re1+ {[%clk 0:01:28]} 31. Kf2 {[%clk 0:00:08]}  Ra1 {[%clk 0:01:29]} 32. Ra4 {[%clk 0:00:08]}  a6 {[%clk 0:01:29]} 33. h4 {[%clk 0:00:06]}  Nd7 {[%clk 0:01:29]} 34. g4 {[%clk 0:00:05]}  Nc5 {[%clk 0:01:29]} 35. Ra5 {[%clk 0:00:06]}  Nd3+ {[%clk 0:01:27]} 36. Ke3 {[%clk 0:00:06]}  Nb4 {[%clk 0:01:28]} 37. a3 {[%clk 0:00:04]}  Rxa3 {[%clk 0:01:27]} 38. Rxa3 {[%clk 0:00:03]}  Nc2+ {[%clk 0:01:27]} 39. Ke4 {[%clk 0:00:03]}  Nxa3 {[%clk 0:01:28]} 40. Ke5 {[%clk 0:00:03]}  Nb5 {[%clk 0:01:27]} 41. g5 {[%clk 0:00:02]}  Kf7 {[%clk 0:01:27]} 42. Bg4 {[%clk 0:00:02]}  Ke7 {[%clk 0:01:28]} 43. Ke4 {[%clk 0:00:01]}  a5 {[%clk 0:01:25]} 44. Ke5 {[%clk 0:00:01]}  Nd6 {[%clk 0:01:24]} 45. Be2 {[%clk 0:00:02]}  b5 {[%clk 0:01:24]} 46. h5 {[%clk 0:00:03]}  Nf7+ {[%clk 0:01:24]} 47. Kf4 {[%clk 0:00:02]}  Kd6 {[%clk 0:01:25]} 48. hxg6 {[%clk 0:00:03]}  hxg6 {[%clk 0:01:26]} 49. Bd3 {[%clk 0:00:03]}  Ne5 {[%clk 0:01:26]} 50. Be4 {[%clk 0:00:04]}  a4 {[%clk 0:01:27]} 51. bxa4 {[%clk 0:00:05]}  bxa4 {[%clk 0:01:27]} 52. Ke3 {[%clk 0:00:05]}  a3 {[%clk 0:01:27]} 53. Bb1 {[%clk 0:00:06]}  Kd5 {[%clk 0:01:26]} 54. Ba2+ {[%clk 0:00:06]}  Kc5 {[%clk 0:01:27]} 55. Ke4 {[%clk 0:00:06]}  Nc4 {[%clk 0:01:27]} 56. Kd3 {[%clk 0:00:07]}  Nd6 {[%clk 0:01:27]} 57. Bb1 {[%clk 0:00:05]}  Kb4 {[%clk 0:01:27]} 58. Ba2 {[%clk 0:00:04]}  c5 {[%clk 0:01:26]} 59. Kc2 {[%clk 0:00:05]}  c4 {[%clk 0:01:27]} 60. Kd2 {[%clk 0:00:05]}  Ne4+ {[%clk 0:01:27]} 61. Ke3 {[%clk 0:00:05]}  Nxg5 {[%clk 0:01:28]} 62. Kd4 {[%clk 0:00:06]}  Ne6+ {[%clk 0:01:28]} 63. Kd5 {[%clk 0:00:06]}  Nf4+ {[%clk 0:01:28]} 64. Ke4 {[%clk 0:00:06]}  Nd3 {[%clk 0:01:28]} 65. Kd4 {[%clk 0:00:06]}  Nb2 {[%clk 0:01:28]} 66. Ke3 {[%clk 0:00:06]}  Kc3 {[%clk 0:01:28]} 0-1


[Site "https://www.chess.com"]

[Event "Titled Tuesday Blitz October 19 2021"]
[White "Khusenkhojaev, Muhammad"]
[Black "Shtembuliak, Evgeny"]
[WhiteFideId "14700247"]
[BlackFideId "14113325"]
[WhiteElo "2190"]
[BlackElo "2504"]
[Result "1-0"]
[Round "10"]
[TimeControl "180+1"]
[Date "2021.10.19"]
[WhiteClock "0:00:13"]
[BlackClock "0:00:21"]

1. d4 {[%clk 0:03:00]}  d5 {[%clk 0:02:59]} 2. c4 {[%clk 0:03:00]}  e6 {[%clk 0:02:59]} 3. Nc3 {[%clk 0:02:59]}  Nf6 {[%clk 0:02:58]} 4. Bg5 {[%clk 0:02:59]}  Be7 {[%clk 0:02:58]} 5. e3 {[%clk 0:02:58]}  h6 {[%clk 0:02:57]} 6. Bh4 {[%clk 0:02:58]}  O-O {[%clk 0:02:56]} 7. Nf3 {[%clk 0:02:57]}  b6 {[%clk 0:02:56]} 8. Rc1 {[%clk 0:02:51]}  Bb7 {[%clk 0:02:51]} 9. Be2 {[%clk 0:02:43]}  dxc4 {[%clk 0:02:51]} 10. Bxc4 {[%clk 0:02:43]}  Nbd7 {[%clk 0:02:51]} 11. O-O {[%clk 0:02:43]}  c5 {[%clk 0:02:51]} 12. Qe2 {[%clk 0:02:40]}  a6 {[%clk 0:02:49]} 13. dxc5 {[%clk 0:02:39]}  b5 {[%clk 0:02:46]} 14. Bd3 {[%clk 0:02:33]}  Nxc5 {[%clk 0:02:45]} 15. Bb1 {[%clk 0:02:32]}  b4 {[%clk 0:02:42]} 16. Bxf6 {[%clk 0:02:15]}  Bxf6 {[%clk 0:02:38]} 17. Nb5 {[%clk 0:02:15]}  Qb6 {[%clk 0:02:00]} 18. Nbd4 {[%clk 0:02:09]}  Rfd8 {[%clk 0:02:00]} 19. Qc2 {[%clk 0:02:04]}  Ne4 {[%clk 0:01:55]} 20. Qc7 {[%clk 0:02:04]}  Qxc7 {[%clk 0:01:49]} 21. Rxc7 {[%clk 0:02:02]}  Bd5 {[%clk 0:01:50]} 22. Rfc1 {[%clk 0:01:46]}  a5 {[%clk 0:01:44]} 23. h3 {[%clk 0:01:42]}  h5 {[%clk 0:01:41]} 24. Nc6 {[%clk 0:01:12]}  Bxc6 {[%clk 0:00:54]} 25. R7xc6 {[%clk 0:01:13]}  Nd6 {[%clk 0:00:54]} 26. Nd4 {[%clk 0:01:07]}  Bxd4 {[%clk 0:00:52]} 27. exd4 {[%clk 0:01:06]}  g6 {[%clk 0:00:48]} 28. R6c5 {[%clk 0:00:49]}  a4 {[%clk 0:00:46]} 29. d5 {[%clk 0:00:43]}  e5 {[%clk 0:00:35]} 30. Re1 {[%clk 0:00:43]}  f6 {[%clk 0:00:35]} 31. Bd3 {[%clk 0:00:38]}  g5 {[%clk 0:00:26]} 32. Rc7 {[%clk 0:00:35]}  Rac8 {[%clk 0:00:24]} 33. Rec1 {[%clk 0:00:33]}  Kf8 {[%clk 0:00:20]} 34. R1c6 {[%clk 0:00:30]}  Rxc7 {[%clk 0:00:17]} 35. Rxc7 {[%clk 0:00:30]}  a3 {[%clk 0:00:18]} 36. bxa3 {[%clk 0:00:28]}  bxa3 {[%clk 0:00:18]} 37. Ra7 {[%clk 0:00:29]}  e4 {[%clk 0:00:19]} 38. Be2 {[%clk 0:00:28]}  h4 {[%clk 0:00:18]} 39. Rxa3 {[%clk 0:00:27]}  Rc8 {[%clk 0:00:19]} 40. Ra6 {[%clk 0:00:25]}  Ke7 {[%clk 0:00:18]} 41. Ra7+ {[%clk 0:00:24]}  Kd8 {[%clk 0:00:19]} 42. Bg4 {[%clk 0:00:23]}  Rc1+ {[%clk 0:00:19]} 43. Kh2 {[%clk 0:00:23]}  f5 {[%clk 0:00:20]} 44. Bh5 {[%clk 0:00:21]}  f4 {[%clk 0:00:20]} 45. Bg4 {[%clk 0:00:21]}  Ra1 {[%clk 0:00:19]} 46. Rd7+ {[%clk 0:00:20]}  Ke8 {[%clk 0:00:18]} 47. Rxd6 {[%clk 0:00:21]}  Rxa2 {[%clk 0:00:18]} 48. Re6+ {[%clk 0:00:21]}  Kf7 {[%clk 0:00:18]} 49. Rxe4 {[%clk 0:00:20]}  Rxf2 {[%clk 0:00:19]} 50. d6 {[%clk 0:00:20]}  Rd2 {[%clk 0:00:19]} 51. d7 {[%clk 0:00:20]}  f3 {[%clk 0:00:18]} 52. Bxf3 {[%clk 0:00:20]}  Rxd7 {[%clk 0:00:18]} 53. Re5 {[%clk 0:00:18]}  Kf6 {[%clk 0:00:19]} 54. Ra5 {[%clk 0:00:18]}  Rd6 {[%clk 0:00:19]} 55. Rd5 {[%clk 0:00:17]}  Rb6 {[%clk 0:00:19]} 56. Rc5 {[%clk 0:00:17]}  Rb4 {[%clk 0:00:18]} 57. Rc6+ {[%clk 0:00:17]}  Kf7 {[%clk 0:00:18]} 58. Bh5+ {[%clk 0:00:16]}  Ke7 {[%clk 0:00:19]} 59. Rg6 {[%clk 0:00:15]}  Rb5 {[%clk 0:00:19]} 60. Bf3 {[%clk 0:00:16]}  Rc5 {[%clk 0:00:19]} 61. Kg1 {[%clk 0:00:16]}  Kf7 {[%clk 0:00:20]} 62. Bh5 {[%clk 0:00:16]}  Ke7 {[%clk 0:00:20]} 63. Kf2 {[%clk 0:00:15]}  Rf5+ {[%clk 0:00:20]} 64. Bf3 {[%clk 0:00:15]}  Kf7 {[%clk 0:00:20]} 65. Rb6 {[%clk 0:00:15]}  Ra5 {[%clk 0:00:20]} 66. Ke3 {[%clk 0:00:15]}  Ra4 {[%clk 0:00:21]} 67. Rb3 {[%clk 0:00:14]}  Kf6 {[%clk 0:00:21]} 68. Rd3 {[%clk 0:00:15]}  Ra6 {[%clk 0:00:21]} 69. Rd4 {[%clk 0:00:14]}  Rb6 {[%clk 0:00:21]} 70. Rc4 {[%clk 0:00:14]}  Ra6 {[%clk 0:00:21]} 71. Rc6+ {[%clk 0:00:13]} 1-0


[Site "https://www.chess.com"]

[Event "Titled Tuesday Blitz October 19 2021"]
[White "Kovalev, Vladislav"]
[Black "Bluebaum, Matthias"]
[WhiteFideId "13504398"]
[BlackFideId "24651516"]
[WhiteElo "2573"]
[BlackElo "2681"]
[Result "1-0"]
[Round "10"]
[TimeControl "180+1"]
[Date "2021.10.19"]
[WhiteClock "0:00:08"]
[BlackClock "0:00:18"]

1. e4 {[%clk 0:02:36]}  e6 {[%clk 0:02:59]} 2. d4 {[%clk 0:02:35]}  d5 {[%clk 0:02:59]} 3. Nd2 {[%clk 0:02:36]}  c5 {[%clk 0:03:00]} 4. Ngf3 {[%clk 0:02:35]}  cxd4 {[%clk 0:03:00]} 5. Nxd4 {[%clk 0:02:36]}  Nf6 {[%clk 0:03:01]} 6. exd5 {[%clk 0:02:36]}  Nxd5 {[%clk 0:03:02]} 7. Ne4 {[%clk 0:02:27]}  Be7 {[%clk 0:03:00]} 8. Bc4 {[%clk 0:02:27]}  O-O {[%clk 0:02:59]} 9. O-O {[%clk 0:02:27]}  Nf6 {[%clk 0:02:59]} 10. Nxf6+ {[%clk 0:01:54]}  Bxf6 {[%clk 0:03:00]} 11. Be3 {[%clk 0:01:55]}  Bd7 {[%clk 0:03:00]} 12. Be2 {[%clk 0:01:46]}  Nc6 {[%clk 0:03:00]} 13. Bf3 {[%clk 0:01:47]}  Nxd4 {[%clk 0:02:40]} 14. Bxd4 {[%clk 0:01:47]}  Bxd4 {[%clk 0:02:41]} 15. Qxd4 {[%clk 0:01:47]}  Qc7 {[%clk 0:02:41]} 16. Rfd1 {[%clk 0:01:41]}  Rfd8 {[%clk 0:02:38]} 17. Qd6 {[%clk 0:01:37]}  Rac8 {[%clk 0:02:21]} 18. c3 {[%clk 0:01:27]}  b6 {[%clk 0:02:10]} 19. Qe7 {[%clk 0:01:07]}  Be8 {[%clk 0:01:37]} 20. Qxc7 {[%clk 0:00:58]}  Rxd1+ {[%clk 0:01:36]} 21. Rxd1 {[%clk 0:00:58]}  Rxc7 {[%clk 0:01:37]} 22. Kf1 {[%clk 0:00:48]}  Kf8 {[%clk 0:01:37]} 23. Ke2 {[%clk 0:00:48]}  Ke7 {[%clk 0:01:38]} 24. Ke3 {[%clk 0:00:49]}  Bc6 {[%clk 0:01:31]} 25. Bxc6 {[%clk 0:00:48]}  Rxc6 {[%clk 0:01:32]} 26. Rd4 {[%clk 0:00:39]}  Rc5 {[%clk 0:01:32]} 27. Kd3 {[%clk 0:00:31]}  g5 {[%clk 0:01:26]} 28. b4 {[%clk 0:00:21]}  Rf5 {[%clk 0:01:24]} 29. f3 {[%clk 0:00:21]}  h5 {[%clk 0:01:19]} 30. h3 {[%clk 0:00:21]}  h4 {[%clk 0:01:20]} 31. a4 {[%clk 0:00:19]}  Re5 {[%clk 0:01:19]} 32. Re4 {[%clk 0:00:17]}  Rd5+ {[%clk 0:01:04]} 33. Rd4 {[%clk 0:00:17]}  Re5 {[%clk 0:01:04]} 34. Kd2 {[%clk 0:00:10]}  Rf5 {[%clk 0:00:53]} 35. Ke3 {[%clk 0:00:06]}  Re5+ {[%clk 0:00:54]} 36. Kf2 {[%clk 0:00:07]}  Rf5 {[%clk 0:00:53]} 37. Ke3 {[%clk 0:00:05]}  a6 {[%clk 0:00:48]} 38. Kd3 {[%clk 0:00:05]}  Re5 {[%clk 0:00:48]} 39. Re4 {[%clk 0:00:06]}  Rf5 {[%clk 0:00:47]} 40. Rd4 {[%clk 0:00:06]}  b5 {[%clk 0:00:47]} 41. axb5 {[%clk 0:00:06]}  axb5 {[%clk 0:00:47]} 42. c4 {[%clk 0:00:06]}  bxc4+ {[%clk 0:00:48]} 43. Kxc4 {[%clk 0:00:07]}  Re5 {[%clk 0:00:48]} 44. Re4 {[%clk 0:00:07]}  Rd5 {[%clk 0:00:48]} 45. Re2 {[%clk 0:00:06]}  Kd6 {[%clk 0:00:47]} 46. b5 {[%clk 0:00:06]}  Rc5+ {[%clk 0:00:47]} 47. Kb4 {[%clk 0:00:06]}  Rc1 {[%clk 0:00:48]} 48. Re3 {[%clk 0:00:04]}  Rc2 {[%clk 0:00:47]} 49. Rd3+ {[%clk 0:00:04]}  Ke5 {[%clk 0:00:16]} 50. b6 {[%clk 0:00:05]}  Rc6 {[%clk 0:00:05]} 51. Kb5 {[%clk 0:00:05]}  Rc1 {[%clk 0:00:06]} 52. Rb3 {[%clk 0:00:04]}  Rc8 {[%clk 0:00:06]} 53. b7 {[%clk 0:00:04]}  Rb8 {[%clk 0:00:05]} 54. Kc6 {[%clk 0:00:05]}  f5 {[%clk 0:00:05]} 55. Rb4 {[%clk 0:00:05]}  Rg8 {[%clk 0:00:06]} 56. Kc7 {[%clk 0:00:06]}  Rg7+ {[%clk 0:00:07]} 57. Kc6 {[%clk 0:00:05]}  Rg8 {[%clk 0:00:08]} 58. Kc5 {[%clk 0:00:03]}  Rb8 {[%clk 0:00:09]} 59. Kb6 {[%clk 0:00:03]}  Rf8 {[%clk 0:00:08]} 60. Kc6 {[%clk 0:00:03]}  Rb8 {[%clk 0:00:08]} 61. Rc4 {[%clk 0:00:03]}  Rh8 {[%clk 0:00:09]} 62. Kb6 {[%clk 0:00:04]}  Rh7 {[%clk 0:00:10]} 63. b8=Q+ {[%clk 0:00:04]}  Kf6 {[%clk 0:00:10]} 64. Qf8+ {[%clk 0:00:05]}  Rf7 {[%clk 0:00:11]} 65. Qd8+ {[%clk 0:00:05]}  Ke5 {[%clk 0:00:12]} 66. Qxg5 {[%clk 0:00:05]}  Rd7 {[%clk 0:00:11]} 67. f4+ {[%clk 0:00:04]}  Kd5 {[%clk 0:00:11]} 68. Rc5+ {[%clk 0:00:05]}  Ke4 {[%clk 0:00:11]} 69. Re5+ {[%clk 0:00:05]}  Kd4 {[%clk 0:00:12]} 70. Rxe6 {[%clk 0:00:05]}  Rd6+ {[%clk 0:00:13]} 71. Rxd6+ {[%clk 0:00:06]}  Ke3 {[%clk 0:00:14]} 72. Qf6 {[%clk 0:00:06]}  Kf2 {[%clk 0:00:14]} 73. Qxf5 {[%clk 0:00:07]}  Kg1 {[%clk 0:00:15]} 74. Qg4 {[%clk 0:00:07]}  Kh2 {[%clk 0:00:16]} 75. Qf3 {[%clk 0:00:07]}  Kh1 {[%clk 0:00:16]} 76. g4+ {[%clk 0:00:07]}  Kh2 {[%clk 0:00:17]} 77. Rd2+ {[%clk 0:00:08]}  Kg1 {[%clk 0:00:18]} 78. Qg2# {[%clk 0:00:08]} 1-0


[Site "https://www.chess.com"]

[Event "Titled Tuesday Blitz October 19 2021"]
[White "Le, Tuan Minh"]
[Black "Yilmaz, Mustafa"]
[WhiteFideId "12401153"]
[BlackFideId "6302718"]
[WhiteElo "2450"]
[BlackElo "2518"]
[Result "0-1"]
[Round "10"]
[TimeControl "180+1"]
[Date "2021.10.19"]
[WhiteClock "0:00:03"]
[BlackClock "0:00:21"]

1. d4 {[%clk 0:03:00]}  Nf6 {[%clk 0:02:59]} 2. Nf3 {[%clk 0:02:53]}  d5 {[%clk 0:02:58]} 3. Bf4 {[%clk 0:02:52]}  c5 {[%clk 0:02:58]} 4. c3 {[%clk 0:02:52]}  e6 {[%clk 0:02:53]} 5. e3 {[%clk 0:02:52]}  Bd6 {[%clk 0:02:53]} 6. Nbd2 {[%clk 0:02:52]}  Bxf4 {[%clk 0:02:46]} 7. exf4 {[%clk 0:02:52]}  Qb6 {[%clk 0:02:43]} 8. Qb3 {[%clk 0:02:51]}  Qxb3 {[%clk 0:02:34]} 9. axb3 {[%clk 0:02:51]}  cxd4 {[%clk 0:02:31]} 10. Nxd4 {[%clk 0:02:52]}  Bd7 {[%clk 0:02:29]} 11. N2f3 {[%clk 0:02:51]}  Nc6 {[%clk 0:02:27]} 12. Bd3 {[%clk 0:02:51]}  Ke7 {[%clk 0:02:25]} 13. Ke2 {[%clk 0:02:39]}  Rhc8 {[%clk 0:02:21]} 14. h3 {[%clk 0:02:34]}  g6 {[%clk 0:02:18]} 15. Rhe1 {[%clk 0:02:29]}  Ne8 {[%clk 0:02:11]} 16. Kd2 {[%clk 0:02:25]}  Nxd4 {[%clk 0:02:09]} 17. Nxd4 {[%clk 0:02:24]}  Kd6 {[%clk 0:02:01]} 18. b4 {[%clk 0:02:24]}  Nc7 {[%clk 0:01:59]} 19. Ra3 {[%clk 0:02:13]}  a6 {[%clk 0:01:58]} 20. Raa1 {[%clk 0:01:48]}  f6 {[%clk 0:01:55]} 21. Nf3 {[%clk 0:01:46]}  Re8 {[%clk 0:01:53]} 22. Bc2 {[%clk 0:01:39]}  e5 {[%clk 0:01:51]} 23. fxe5+ {[%clk 0:01:39]}  fxe5 {[%clk 0:01:52]} 24. Re3 {[%clk 0:01:40]}  Re7 {[%clk 0:01:48]} 25. Rae1 {[%clk 0:01:37]}  Rae8 {[%clk 0:01:45]} 26. Bb3 {[%clk 0:01:17]}  Bf5 {[%clk 0:01:43]} 27. Bc2 {[%clk 0:01:13]}  Bd7 {[%clk 0:01:37]} 28. h4 {[%clk 0:01:03]}  Na8 {[%clk 0:01:29]} 29. Nh2 {[%clk 0:00:46]}  Nb6 {[%clk 0:01:28]} 30. Bb3 {[%clk 0:00:43]}  Bf5 {[%clk 0:01:19]} 31. g4 {[%clk 0:00:43]}  Bd7 {[%clk 0:01:19]} 32. f3 {[%clk 0:00:42]}  Ba4 {[%clk 0:01:14]} 33. Ba2 {[%clk 0:00:42]}  Bb5 {[%clk 0:01:09]} 34. g5 {[%clk 0:00:38]}  Bd7 {[%clk 0:01:08]} 35. b3 {[%clk 0:00:37]}  Bf5 {[%clk 0:01:06]} 36. Bb1 {[%clk 0:00:22]}  Bxb1 {[%clk 0:00:51]} 37. Rxb1 {[%clk 0:00:23]}  d4 {[%clk 0:00:52]} 38. Rd3 {[%clk 0:00:23]}  Nd5 {[%clk 0:00:50]} 39. Ng4 {[%clk 0:00:14]}  Nxc3 {[%clk 0:00:34]} 40. Re1 {[%clk 0:00:15]}  Nd5 {[%clk 0:00:34]} 41. Kd1 {[%clk 0:00:13]}  Nxb4 {[%clk 0:00:32]} 42. Rd2 {[%clk 0:00:13]}  Rc8 {[%clk 0:00:32]} 43. f4 {[%clk 0:00:12]}  Rec7 {[%clk 0:00:20]} 44. Rxe5 {[%clk 0:00:08]}  d3 {[%clk 0:00:19]} 45. Ke1 {[%clk 0:00:08]}  Rc1+ {[%clk 0:00:19]} 46. Kf2 {[%clk 0:00:08]}  R8c2 {[%clk 0:00:20]} 47. Rxc2 {[%clk 0:00:01]}  dxc2 {[%clk 0:00:21]} 48. Ne3 {[%clk 0:00:01]}  Rf1+ {[%clk 0:00:20]} 49. Nxf1 {[%clk 0:00:02]}  c1=Q {[%clk 0:00:21]} 50. Ne3 {[%clk 0:00:03]}  Nd3+ {[%clk 0:00:21]} 0-1


[Site "https://www.chess.com"]

[Event "Titled Tuesday Blitz October 19 2021"]
[White "Nguyen, Ngoc Truong Son"]
[Black "Dang, Hoang Son"]
[WhiteFideId "12401110"]
[BlackFideId "12402435"]
[WhiteElo "2596"]
[BlackElo "2248"]
[Result "1-0"]
[Round "10"]
[TimeControl "180+1"]
[Date "2021.10.19"]
[WhiteClock "0:00:54"]
[BlackClock "0:00:53"]

1. d4 {[%clk 0:03:00]}  Nf6 {[%clk 0:03:00]} 2. Nf3 {[%clk 0:03:00]}  g6 {[%clk 0:03:00]} 3. Nc3 {[%clk 0:03:00]}  Bg7 {[%clk 0:03:01]} 4. e4 {[%clk 0:03:00]}  O-O {[%clk 0:03:02]} 5. e5 {[%clk 0:03:00]}  Ne8 {[%clk 0:03:02]} 6. h4 {[%clk 0:03:00]}  d6 {[%clk 0:02:57]} 7. Bf4 {[%clk 0:02:46]}  dxe5 {[%clk 0:02:53]} 8. Nxe5 {[%clk 0:02:44]}  Nd7 {[%clk 0:02:46]} 9. h5 {[%clk 0:02:35]}  Nxe5 {[%clk 0:02:44]} 10. dxe5 {[%clk 0:02:36]}  Qxd1+ {[%clk 0:02:42]} 11. Rxd1 {[%clk 0:02:37]}  c6 {[%clk 0:02:43]} 12. h6 {[%clk 0:02:25]}  Bh8 {[%clk 0:02:38]} 13. Bc4 {[%clk 0:02:16]}  Nc7 {[%clk 0:02:28]} 14. Bg3 {[%clk 0:01:50]}  Bf5 {[%clk 0:02:22]} 15. Bb3 {[%clk 0:01:42]}  Rad8 {[%clk 0:02:21]} 16. Ke2 {[%clk 0:01:42]}  Ne6 {[%clk 0:01:57]} 17. Bxe6 {[%clk 0:01:32]}  Bxe6 {[%clk 0:01:56]} 18. Ke3 {[%clk 0:01:24]}  f6 {[%clk 0:01:46]} 19. f4 {[%clk 0:01:22]}  fxe5 {[%clk 0:01:38]} 20. fxe5 {[%clk 0:01:23]}  Rde8 {[%clk 0:01:37]} 21. Rhf1 {[%clk 0:01:16]}  Rxf1 {[%clk 0:01:19]} 22. Rxf1 {[%clk 0:01:17]}  Bf5 {[%clk 0:01:16]} 23. Ne4 {[%clk 0:01:15]}  Rd8 {[%clk 0:01:11]} 24. Bf4 {[%clk 0:01:04]}  Rd5 {[%clk 0:00:58]} 25. c4 {[%clk 0:00:56]}  Ra5 {[%clk 0:00:56]} 26. Rd1 {[%clk 0:00:56]}  Bxe5 {[%clk 0:00:55]} 27. Rd8+ {[%clk 0:00:55]}  Kf7 {[%clk 0:00:52]} 28. Ng5+ {[%clk 0:00:55]}  Kf6 {[%clk 0:00:53]} 29. Rf8# {[%clk 0:00:54]} 1-0


[Site "https://www.chess.com"]